[Event "Turkish Cup 2022"]
[Site "Sakarya"]
[Date "2022.03.30"]
[Round "8.35"]
[White "Surucu, Efe Mustafa"]
[Black "Demirag, Batuhan"]
[Result "0-1"]
[ECO "B33"]
[WhiteElo "1598"]
[BlackElo "1923"]
[Annotator "ChessBase"]
[PlyCount "78"]
[EventDate "2022.03.25"]
[EventType "swiss"]
[EventCountry "TUR"]
[SourceTitle "playchess.com"]
[Source "ChessBase"]
[SourceQuality "1"]
[TimeControl "5400+30"]

1. e4 {[%emt 0:01:00]} c5 {[%emt 0:01:00]} 2. Nf3 {[%emt 0:00:00]} Nc6 {[%emt 0:00:30]} 3. d4 {[%emt 0:00:00]} cxd4 {[%emt 0:00:30]} 4. Nxd4 {[%emt 0:00:30]} Nf6 {[%emt 0:00:30]} 5. Nc3 {[%emt 0:00:00]} e5 {[%emt 0:00:00]} 6. Ndb5 {[%emt 0:00:00]} d6 {[%emt 0:00:00]} 7. Bg5 {[%emt 0:00:30]} a6 {[%emt 0:00:00]} 8. Na3 {[%emt 0:00:00]} b5 {[%emt 0:00:00]} 9. Nd5 {[%emt 0:00:00]} Be7 {[%emt 0:00:00]} 10. Bxf6 {[%emt 0:00:00]} Bxf6 {[%emt 0:00:00]} 11. c4 {[%emt 0:00:00]} b4 {[%emt 0:00:00]} 12. Nc2 {[%emt 0:00:30]} O-O {[%emt 0:00:00]} 13. Ncxb4 {[%emt 0:04:30]} Nxb4 {[%emt 0:00:00]} 14. Nxb4 {[%emt 0:00:30]} Qb6 {[%emt 0:00:00]} 15. Nd5 {[%emt 0:09:30]} Qxb2 {[%emt 0:00:30]} 16. Bd3 {[%emt 0:00:00]} Be6 {[%emt 0:04:30]} 17. Nxf6+ {[%emt 0:21:00]} gxf6 {[%emt 0:00:30]} 18. O-O {[%emt 0:00:30]} Kg7 {[%emt 0:00:30]} 19. Qf3 {[%emt 0:00:30]} Qd2 {[%emt 0:10:30]} 20. Rfd1 {[%emt 0:03:30]} Qg5 {[%emt 0:01:30]} 21. Be2 {[%emt 0:00:30]} Rad8 {[%emt 0:01:30]} 22. Rab1 {[%emt 0:05:30]} Rb8 {[%emt 0:14:30]} 23. Rb3 {[%emt 0:05:30]} Rfd8 {[%emt 0:01:30]} 24. g3 {[%emt 0:00:00]} Rbc8 {[%emt 0:07:30]} 25. Rb6 {[%emt 0:17:00]} Bxc4 {[%emt 0:00:30]} 26. Bxc4 {[%emt 0:00:30]} Rxc4 {[%emt 0:00:30]} 27. Rdxd6 {[%emt 0:00:30]} Rxd6 {[%emt 0:00:30]} 28. Rxd6 {[%emt 0:00:00]} Ra4 {[%emt 0:01:30]} 29. a3 {[%emt 0:00:00]} Qg6 {[%emt 0:00:30]} 30. Rb6 {[%emt 0:01:30]} a5 {[%emt 0:01:30]} 31. Rb5 {[%emt 0:00:30]} h5 {[%emt 0:01:30]} 32. Kg2 {[%emt 0:09:30]} h4 {[%emt 0:01:30]} 33. h3 {[%emt 0:04:25]} hxg3 {[%emt 0:00:30]} 34. fxg3 {[%emt 0:01:13]} Rxe4 {[%emt 0:00:30]} 35. Rxa5 {[%emt 0:00:31]} Rd4 {[%emt 0:02:30]} 36. h4 {[%emt 0:00:29]} Qc2+ {[%emt 0:04:30]} 37. Kh3 {[%emt 0:00:07]} Qc8+ {[%emt 0:00:30]} 38. g4 {[%emt 0:01:06]} Qc4 {[%emt 0:00:30]} 39. Kh2 {[%emt 0:01:47]} Rd2+ {[%emt 0:00:30]} 0-1

[Event "Turkish Cup 2022"]
[Site "Sakarya"]
[Date "2022.03.30"]
[Round "8.36"]
[White "Melik, Enes"]
[Black "Kocakaplan, Emre"]
[Result "1-0"]
[ECO "B06"]
[WhiteElo "1592"]
[BlackElo "1846"]
[Annotator "NA"]
[PlyCount "95"]
[EventDate "2022.03.25"]
[EventType "swiss"]
[EventCountry "TUR"]
[SourceTitle "playchess.com"]
[Source "ChessBase"]
[SourceQuality "1"]
[TimeControl "5400+30"]

1. f4 {[%emt 0:01:00]} g6 {[%emt 0:01:00]} 2. Nf3 {[%emt 0:00:30]} Bg7 {[%emt 0:00:00]} 3. e4 {[%emt 0:05:30]} d5 {[%emt 0:06:00]} 4. e5 {[%emt 0:03:30]} Nh6 {[%emt 0:01:30]} 5. d4 {[%emt 0:05:30]} O-O {[%emt 0:02:30]} 6. Nc3 {[%emt 0:04:30]} b6 {[%emt 0:04:30]} 7. Be3 {[%emt 0:03:30]} f6 {[%emt 0:19:30]} 8. Qd2 {[%emt 0:06:30]} Bb7 {[%emt 0:05:30]} 9. Rg1 {[%emt 0:10:30]} Ng4 {[%emt 0:08:30]} 10. O-O-O {[%emt 0:05:30]} c5 {[%emt 0:11:30]} 11. dxc5 {[%emt 0:11:30]} bxc5 {[%emt 0:11:30]} 12. Bxc5 {[%emt 0:00:30]} fxe5 {[%emt 0:01:30]} 13. Nxe5 {[%emt 0:02:30]} Nxe5 {[%emt 0:06:19]} 14. fxe5 {[%emt 0:00:30]} Nd7 {[%emt 0:03:27]} 15. Ba3 {[%emt 0:06:30]} Nxe5 {[%emt 0:06:56]} 16. Nxd5 {[%emt 0:01:30]} Bxd5 {[%emt 0:00:35]} 17. Qxd5+ {[%emt 0:00:30]} Qxd5 {[%emt 0:00:00]} 18. Rxd5 {[%emt 0:00:00]} Bh6+ {[%emt 0:01:34]} 19. Kb1 {[%emt 0:06:00]} Rad8 {[%emt 0:01:18]} 20. Rxd8 {[%emt 0:00:30]} Rxd8 {[%emt 0:00:30]} 21. Be2 {[%emt 0:00:30]} Rd2 {[%emt 0:00:30]} 22. Re1 {[%emt 0:00:30]} e6 {[%emt 0:00:30]} 23. b3 {[%emt 0:00:30]} Rd4 {[%emt 0:05:17]} 24. Bf1 {[%emt 0:02:30]} Ng4 {[%emt 0:00:57]} 25. h3 {[%emt 0:00:00]} Ne3 {[%emt 0:00:06]} 26. Bc5 {[%emt 0:03:00]} Rd1+ {[%emt 0:00:42]} 27. Rxd1 {[%emt 0:00:30]} Nxd1 {[%emt 0:00:00]} 28. Bxa7 {[%emt 0:00:32]} Ne3 {[%emt 0:00:38]} 29. Bxe3 {[%emt 0:00:46]} Bxe3 {[%emt 0:00:01]} 30. c4 {[%emt 0:00:14]} Kf7 {[%emt 0:00:18]} 31. Kc2 {[%emt 0:00:50]} Bc5 {[%emt 0:00:30]} 32. Kc3 {[%emt 0:00:30]} e5 {[%emt 0:00:00]} 33. b4 {[%emt 0:00:13]} Bd4+ {[%emt 0:00:14]} 34. Kd3 {[%emt 0:00:30]} Ke6 {[%emt 0:00:30]} 35. Ke4 {[%emt 0:00:30]} Kd6 {[%emt 0:00:00]} 36. Kd3 {[%emt 0:02:06]} h6 {[%emt 0:00:00]} 37. Be2 {[%emt 0:00:00]} Bf2 {[%emt 0:00:00]} 38. c5+ {[%emt 0:00:43]} Kc6 {[%emt 0:00:06]} 39. a4 {[%emt 0:00:48]} e4+ {[%emt 0:00:28]} 40. Kc4 {[%emt 0:00:54]} Be1 {[%emt 0:00:30]} 41. b5+ {[%emt 0:00:30]} Kb7 {[%emt 0:00:00]} 42. Kd4 {[%emt 0:00:22]} Bf2+ {[%emt 0:00:24]} 43. Kd5 {[%emt 0:00:24]} Kc7 {[%emt 0:00:25]} 44. a5 {[%emt 0:00:37]} Be1 {[%emt 0:00:30]} 45. a6 {[%emt 0:00:30]} Bb4 {[%emt 0:00:30]} 46. b6+ {[%emt 0:00:30]} Kb8 {[%emt 0:00:00]} 47. c6 {[%emt 0:00:00]} Ba5 {[%emt 0:00:00]} 48. c7+ {[%emt 0:00:00]} 1-0

[Event "Turkish Cup 2022"]
[Site "Sakarya"]
[Date "2022.03.30"]
[Round "8.37"]
[White "Isik, Kadri"]
[Black "Gozubuyukoglu, Selami"]
[Result "0-1"]
[ECO "C25"]
[WhiteElo "1858"]
[BlackElo "1747"]
[Annotator "NA"]
[PlyCount "70"]
[EventDate "2022.03.25"]
[EventType "swiss"]
[EventCountry "TUR"]
[SourceTitle "playchess.com"]
[Source "ChessBase"]
[SourceQuality "1"]
[TimeControl "5400+30"]

1. e4 {[%emt 0:09:00]} e5 {[%emt 0:01:00]} 2. Nc3 {[%emt 0:00:30]} Nc6 {[%emt 0:00:30]} 3. f4 {[%emt 0:01:30]} exf4 {[%emt 0:00:30]} 4. Nf3 {[%emt 0:00:30]} g5 {[%emt 0:00:30]} 5. Bc4 {[%emt 0:00:30]} Bg7 {[%emt 0:00:30]} 6. O-O {[%emt 0:12:30]} Nd4 {[%emt 0:03:30]} 7. e5 {[%emt 0:02:30]} Nxf3+ {[%emt 0:01:30]} 8. Qxf3 {[%emt 0:00:30]} Ne7 {[%emt 0:01:30]} 9. g3 {[%emt 0:16:30]} Ng6 {[%emt 0:02:30]} 10. d4 {[%emt 0:08:30]} O-O {[%emt 0:06:30]} 11. gxf4 {[%emt 0:00:30]} gxf4 {[%emt 0:01:30]} 12. Bxf4 {[%emt 0:01:30]} d6 {[%emt 0:02:30]} 13. exd6 {[%emt 0:16:30]} cxd6 {[%emt 0:01:30]} 14. Rad1 {[%emt 0:03:30]} Be6 {[%emt 0:06:30]} 15. Bd5 {[%emt 0:04:56]} Qd7 {[%emt 0:04:30]} 16. Rd3 {[%emt 0:04:59]} Rad8 {[%emt 0:06:30]} 17. Bd2 {[%emt 0:08:42]} Qe7 {[%emt 0:02:30]} 18. Qh5 {[%emt 0:03:44]} Qd7 {[%emt 0:13:30]} 19. Bh6 {[%emt 0:01:27]} Bxh6 {[%emt 0:14:30]} 20. Qxh6 {[%emt 0:00:30]} Bxd5 {[%emt 0:00:30]} 21. Nxd5 {[%emt 0:00:30]} Qg4+ {[%emt 0:00:30]} 22. Rg3 {[%emt 0:00:30]} Qxd4+ {[%emt 0:00:30]} 23. Ne3 {[%emt 0:00:00]} Qg7 {[%emt 0:07:30]} 24. Qh5 {[%emt 0:00:06]} Rde8 {[%emt 0:05:20]} 25. Nf5 {[%emt 0:01:10]} Qxb2 {[%emt 0:01:44]} 26. Nh6+ {[%emt 0:01:07]} Kh8 {[%emt 0:01:59]} 27. Nxf7+ {[%emt 0:00:51]} Kg7 {[%emt 0:05:44]} 28. Qh6+ {[%emt 0:00:59]} Kg8 {[%emt 0:00:02]} 29. Ng5 {[%emt 0:00:19]} Rxf1+ {[%emt 0:01:34]} 30. Kxf1 {[%emt 0:00:01]} Qc1+ {[%emt 0:01:36]} 31. Kg2 {[%emt 0:00:51]} Re2+ {[%emt 0:02:38]} 32. Kf3 {[%emt 0:00:43]} Qe3+ {[%emt 0:01:31]} 33. Kg4 {[%emt 0:00:01]} Qf4+ {[%emt 0:00:25]} 34. Kh3 {[%emt 0:00:08]} Qf5+ {[%emt 0:00:56]} 35. Rg4 {[%emt 0:00:02]} Qf1+ {[%emt 0:00:04]} 0-1

[Event "Turkish Cup 2022"]
[Site "Sakarya"]
[Date "2022.03.30"]
[Round "8.38"]
[White "Celik, Ege Yigit"]
[Black "Gazioglu, Halit"]
[Result "1-0"]
[ECO "A11"]
[WhiteElo "1466"]
[BlackElo "1880"]
[Annotator "NA RC"]
[PlyCount "81"]
[EventDate "2022.03.25"]
[EventType "swiss"]
[EventCountry "TUR"]
[SourceTitle "playchess.com"]
[Source "ChessBase"]
[SourceQuality "1"]
[TimeControl "5400+30"]

1. c4 {[%emt 0:01:00]} Nf6 {[%emt 0:01:00]} 2. Nc3 {[%emt 0:00:00]} c6 {[%emt 0:00:30]} 3. e3 {[%emt 0:02:00]} d5 {[%emt 0:00:30]} 4. Nf3 {[%emt 0:00:30]} e6 {[%emt 0:03:30]} 5. b3 {[%emt 0:00:30]} Nbd7 {[%emt 0:00:30]} 6. Bb2 {[%emt 0:03:30]} Bd6 {[%emt 0:04:30]} 7. Be2 {[%emt 0:03:30]} O-O {[%emt 0:03:30]} 8. O-O {[%emt 0:01:30]} e5 {[%emt 0:02:30]} 9. d3 {[%emt 0:03:30]} Re8 {[%emt 0:00:30]} 10. Rc1 {[%emt 0:01:30]} a6 {[%emt 0:00:30]} 11. Re1 {[%emt 0:03:30]} Qe7 {[%emt 0:03:30]} 12. Bf1 {[%emt 0:04:30]} e4 {[%emt 0:03:30]} 13. dxe4 {[%emt 0:04:30]} dxe4 {[%emt 0:00:30]} 14. Nd4 {[%emt 0:00:00]} Ne5 {[%emt 0:02:30]} 15. Qc2 {[%emt 0:27:00]} Neg4 {[%emt 0:11:30]} 16. h3 {[%emt 0:04:30]} Bh2+ {[%emt 0:15:30]} 17. Kh1 {[%emt 0:01:30]} Bc7 {[%emt 0:01:30]} 18. hxg4 {[%emt 0:14:30]} Nxg4 {[%emt 0:00:30]} 19. g3 {[%emt 0:00:00]} Qf6 {[%emt 0:06:30]} 20. Kg1 {[%emt 0:01:00]} Qh6 {[%emt 0:04:30]} 21. Bg2 {[%emt 0:00:00]} Qh2+ {[%emt 0:03:30]} 22. Kf1 {[%emt 0:00:00]} c5 {[%emt 0:00:30]} 23. Nde2 {[%emt 0:02:30]} Bf5 {[%emt 0:05:30]} 24. Nf4 {[%emt 0:02:17]} Bxf4 {[%emt 0:01:30]} 25. gxf4 {[%emt 0:03:51]} h5 {[%emt 0:01:30]} 26. Re2 {[%emt 0:02:40]} h4 {[%emt 0:00:30]} 27. Nxe4 {[%emt 0:02:01]} h3 {[%emt 0:06:08]} 28. Bf3 {[%emt 0:00:09]} Re6 {[%emt 0:03:13]} 29. Qc3 {[%emt 0:00:32]} Rg6 {[%emt 0:00:38]} 30. Ng3 {[%emt 0:05:43]} Nf6 {[%emt 0:01:59]} 31. Rd2 {[%emt 0:03:34]} Re8 {[%emt 0:03:16]} 32. Nxf5 {[%emt 0:00:43]} Rg2 {[%emt 0:05:19]} 33. Bxg2 {[%emt 0:02:00]} hxg2+ {[%emt 0:00:30]} 34. Ke2 {[%emt 0:00:00]} Qh5+ {[%emt 0:00:54]} 35. f3 {[%emt 0:00:33]} Qxf5 {[%emt 0:01:38]} 36. Rg1 {[%emt 0:00:55]} Qh3 {[%emt 0:00:13]} 37. Kf2 {[%emt 0:00:58]} Nh5 {[%emt 0:02:26]} 38. Rxg2 {[%emt 0:01:13]} Qh4+ {[%emt 0:00:11]} 39. Ke2 {[%emt 0:00:00]} Nxf4+ {[%emt 0:01:24]} 40. Kd1 {[%emt 0:00:00]} Nh5 {[%emt 0:01:06]} 41. Rxg7+ {[%emt 0:00:16]} 1-0

[Event "Turkish Cup 2022"]
[Site "Sakarya"]
[Date "2022.03.30"]
[Round "8.39"]
[White "Anacak, Hasan Gunes"]
[Black "Elmas, Mustafa"]
[Result "1-0"]
[ECO "B90"]
[WhiteElo "1798"]
[BlackElo "1614"]
[Annotator "NA"]
[PlyCount "67"]
[EventDate "2022.03.25"]
[EventType "swiss"]
[EventCountry "TUR"]
[SourceTitle "playchess.com"]
[Source "ChessBase"]
[SourceQuality "1"]
[TimeControl "5400+30"]

1. e4 {[%emt 0:02:00]} c5 {[%emt 0:01:00]} 2. Nf3 {[%emt 0:00:30]} d6 {[%emt 0:00:30]} 3. d4 {[%emt 0:00:30]} cxd4 {[%emt 0:00:00]} 4. Nxd4 {[%emt 0:00:30]} Nf6 {[%emt 0:00:00]} 5. Nc3 {[%emt 0:00:00]} a6 {[%emt 0:00:00]} 6. Rg1 {[%emt 0:02:00]} e5 {[%emt 0:00:00]} 7. Nb3 {[%emt 0:00:30]} Be6 {[%emt 0:00:00]} 8. g4 {[%emt 0:05:30]} h6 {[%emt 0:01:00]} 9. Be3 {[%emt 0:01:30]} Be7 {[%emt 0:04:30]} 10. Qe2 {[%emt 0:09:30]} b5 {[%emt 0:00:30]} 11. O-O-O {[%emt 0:02:30]} Qc7 {[%emt 0:02:30]} 12. Kb1 {[%emt 0:01:30]} Nbd7 {[%emt 0:00:30]} 13. h4 {[%emt 0:20:30]} Bc4 {[%emt 0:00:30]} 14. Qf3 {[%emt 0:04:30]} b4 {[%emt 0:01:30]} 15. Nd5 {[%emt 0:02:30]} Nxd5 {[%emt 0:01:30]} 16. exd5 {[%emt 0:00:30]} Bxf1 {[%emt 0:08:30]} 17. Rdxf1 {[%emt 0:03:30]} Rc8 {[%emt 0:00:30]} 18. Rc1 {[%emt 0:04:30]} Qd8 {[%emt 0:08:30]} 19. g5 {[%emt 0:04:30]} hxg5 {[%emt 0:00:00]} 20. hxg5 {[%emt 0:00:30]} g6 {[%emt 0:01:00]} 21. Nd2 {[%emt 0:05:30]} a5 {[%emt 0:03:30]} 22. Ne4 {[%emt 0:11:55]} a4 {[%emt 0:00:30]} 23. Rh1 {[%emt 0:01:58]} Rf8 {[%emt 0:02:30]} 24. c3 {[%emt 0:04:01]} bxc3 {[%emt 0:01:30]} 25. Nxc3 {[%emt 0:00:19]} Qa5 {[%emt 0:05:30]} 26. Rh4 {[%emt 0:06:04]} Nc5 {[%emt 0:06:30]} 27. Rc4 {[%emt 0:00:54]} a3 {[%emt 0:04:30]} 28. b3 {[%emt 0:00:18]} Rb8 {[%emt 0:00:30]} 29. Bxc5 {[%emt 0:00:08]} dxc5 {[%emt 0:00:30]} 30. Ne4 {[%emt 0:03:04]} Bxg5 {[%emt 0:10:30]} 31. Rxc5 {[%emt 0:00:30]} Qd8 {[%emt 0:02:30]} 32. R1c4 {[%emt 0:03:43]} Be7 {[%emt 0:01:30]} 33. d6 {[%emt 0:00:19]} Bg5 {[%emt 0:01:30]} 34. Rxe5+ {[%emt 0:00:14]} 1-0

[Event "Turkish Cup 2022"]
[Site "Sakarya"]
[Date "2022.03.30"]
[Round "8.40"]
[White "Selvi, Kaan"]
[Black "Pehlivan, Mert"]
[Result "1/2-1/2"]
[ECO "B43"]
[WhiteElo "1823"]
[BlackElo "1573"]
[Annotator "NA"]
[PlyCount "73"]
[EventDate "2022.03.25"]
[EventType "swiss"]
[EventCountry "TUR"]
[SourceTitle "playchess.com"]
[Source "ChessBase"]
[SourceQuality "1"]
[TimeControl "5400+30"]

1. e4 {[%emt 0:01:00]} c5 {[%emt 0:01:00]} 2. Nf3 {[%emt 0:00:30]} e6 {[%emt 0:00:30]} 3. d4 {[%emt 0:00:00]} cxd4 {[%emt 0:00:00]} 4. Nxd4 {[%emt 0:01:00]} a6 {[%emt 0:00:00]} 5. Nc3 {[%emt 0:00:30]} Qc7 {[%emt 0:00:30]} 6. g3 {[%emt 0:01:30]} Nf6 {[%emt 0:02:30]} 7. Bg2 {[%emt 0:03:30]} Bb4 {[%emt 0:01:30]} 8. Bd2 {[%emt 0:02:30]} Nc6 {[%emt 0:04:30]} 9. Nb3 {[%emt 0:03:30]} O-O {[%emt 0:05:30]} 10. a3 {[%emt 0:01:30]} Be7 {[%emt 0:01:30]} 11. O-O {[%emt 0:01:30]} Ne5 {[%emt 0:04:30]} 12. f4 {[%emt 0:10:30]} Nc4 {[%emt 0:01:30]} 13. Bc1 {[%emt 0:00:30]} Rb8 {[%emt 0:10:30]} 14. g4 {[%emt 0:19:30]} b5 {[%emt 0:10:30]} 15. g5 {[%emt 0:03:30]} Ne8 {[%emt 0:01:30]} 16. Rf3 {[%emt 0:05:30]} f6 {[%emt 0:07:30]} 17. h4 {[%emt 0:11:30]} Bb7 {[%emt 0:09:30]} 18. Rd3 {[%emt 0:04:30]} Rd8 {[%emt 0:07:30]} 19. Qe2 {[%emt 0:13:00]} f5 {[%emt 0:07:30]} 20. e5 {[%emt 0:06:48]} Bxg2 {[%emt 0:00:30]} 21. Kxg2 {[%emt 0:02:29]} Qb7+ {[%emt 0:03:23]} 22. Qf3 {[%emt 0:01:45]} Qxf3+ {[%emt 0:00:22]} 23. Rxf3 {[%emt 0:01:13]} Kf7 {[%emt 0:03:10]} 24. Nd4 {[%emt 0:00:49]} Bc5 {[%emt 0:02:11]} 25. Nde2 {[%emt 0:01:09]} Nc7 {[%emt 0:03:01]} 26. b3 {[%emt 0:01:08]} Nb6 {[%emt 0:00:45]} 27. Bb2 {[%emt 0:01:39]} Ncd5 {[%emt 0:01:47]} 28. Nxd5 {[%emt 0:00:19]} Nxd5 {[%emt 0:00:10]} 29. Nd4 {[%emt 0:01:01]} Rc8 {[%emt 0:01:38]} 30. Rc1 {[%emt 0:00:08]} Bxd4 {[%emt 0:01:48]} 31. Bxd4 {[%emt 0:00:30]} Rc6 {[%emt 0:00:17]} 32. Kg3 {[%emt 0:01:22]} Rfc8 {[%emt 0:00:45]} 33. c3 {[%emt 0:00:01]} a5 {[%emt 0:01:07]} 34. Rd1 {[%emt 0:00:47]} Ke8 {[%emt 0:02:25]} 35. Rdd3 {[%emt 0:00:01]} a4 {[%emt 0:00:56]} 36. b4 {[%emt 0:00:39]} Rc4 {[%emt 0:00:40]} 37. Kf2 {[%emt 0:01:01]} 1/2-1/2

[Event "Turkish Cup 2022"]
[Site "Sakarya"]
[Date "2022.03.30"]
[Round "8.41"]
[White "Kurdas, Halil Ibrahim"]
[Black "Ulu, Ekrem"]
[Result "0-1"]
[ECO "A07"]
[WhiteElo "1850"]
[BlackElo "1692"]
[Annotator "NA"]
[PlyCount "172"]
[EventDate "2022.03.25"]
[EventType "swiss"]
[EventCountry "TUR"]
[SourceTitle "playchess.com"]
[Source "ChessBase"]
[SourceQuality "1"]
[TimeControl "5400+30"]

1. Nf3 {[%emt 0:01:00]} d5 {[%emt 0:06:00]} 2. g3 {[%emt 0:00:30]} Bf5 {[%emt 0:02:30]} 3. Bg2 {[%emt 0:00:30]} e6 {[%emt 0:00:30]} 4. d4 {[%emt 0:01:30]} Nd7 {[%emt 0:01:30]} 5. Bf4 {[%emt 0:00:30]} Ngf6 {[%emt 0:00:00]} 6. O-O {[%emt 0:00:30]} Be7 {[%emt 0:04:00]} 7. c4 {[%emt 0:00:30]} c6 {[%emt 0:00:30]} 8. Nbd2 {[%emt 0:01:30]} Ne4 {[%emt 0:00:30]} 9. Qb3 {[%emt 0:06:30]} g5 {[%emt 0:06:30]} 10. Be3 {[%emt 0:00:30]} Rb8 {[%emt 0:05:30]} 11. Ne5 {[%emt 0:02:30]} Nxd2 {[%emt 0:06:30]} 12. Bxd2 {[%emt 0:00:30]} Nxe5 {[%emt 0:24:30]} 13. dxe5 {[%emt 0:00:30]} dxc4 {[%emt 0:05:30]} 14. Qc3 {[%emt 0:03:30]} Qc7 {[%emt 0:00:30]} 15. Qxc4 {[%emt 0:00:30]} Rd8 {[%emt 0:00:30]} 16. Rad1 {[%emt 0:01:30]} O-O {[%emt 0:00:30]} 17. Bc3 {[%emt 0:04:30]} Rxd1 {[%emt 0:03:30]} 18. Rxd1 {[%emt 0:01:30]} Rd8 {[%emt 0:00:00]} 19. Rf1 {[%emt 0:00:30]} Qb6 {[%emt 0:06:00]} 20. b4 {[%emt 0:01:30]} Rd7 {[%emt 0:08:57]} 21. a4 {[%emt 0:02:30]} Qd8 {[%emt 0:00:15]} 22. Qb3 {[%emt 0:00:30]} Bg4 {[%emt 0:03:06]} 23. Qc2 {[%emt 0:04:30]} Bf5 {[%emt 0:00:33]} 24. e4 {[%emt 0:01:30]} Bg6 {[%emt 0:00:08]} 25. a5 {[%emt 0:00:30]} a6 {[%emt 0:04:46]} 26. f4 {[%emt 0:01:30]} Bh5 {[%emt 0:05:47]} 27. h3 {[%emt 0:06:30]} gxf4 {[%emt 0:00:50]} 28. gxf4 {[%emt 0:01:30]} Rd1 {[%emt 0:00:11]} 29. f5 {[%emt 0:00:30]} Rxf1+ {[%emt 0:01:21]} 30. Bxf1 {[%emt 0:00:30]} Qd1 {[%emt 0:00:25]} 31. Qg2+ {[%emt 0:02:30]} Kh8 {[%emt 0:00:59]} 32. f6 {[%emt 0:07:30]} Bf8 {[%emt 0:00:02]} 33. Bd2 {[%emt 0:04:30]} Bf3 {[%emt 0:02:05]} 34. Qf2 {[%emt 0:13:30]} Bxe4 {[%emt 0:00:07]} 35. Qe3 {[%emt 0:04:30]} Qf3 {[%emt 0:00:12]} 36. Qxf3 {[%emt 0:00:30]} Bxf3 {[%emt 0:00:30]} 37. Kf2 {[%emt 0:00:00]} Bd5 {[%emt 0:00:51]} 38. Bd3 {[%emt 0:01:00]} c5 {[%emt 0:00:32]} 39. bxc5 {[%emt 0:01:30]} Bxc5+ {[%emt 0:00:30]} 40. Be3 {[%emt 0:00:30]} Bb4 {[%emt 0:00:30]} 41. Bb6 {[%emt 0:00:30]} Bc3 {[%emt 0:00:30]} 42. Bc7 {[%emt 0:00:30]} Bd4+ {[%emt 0:00:30]} 43. Kg3 {[%emt 0:00:30]} h6 {[%emt 0:00:30]} 44. Be2 {[%emt 0:00:00]} Kg8 {[%emt 0:01:10]} 45. Bf3 {[%emt 0:01:00]} Bxf3 {[%emt 0:01:43]} 46. Kxf3 {[%emt 0:00:00]} Kf8 {[%emt 0:00:28]} 47. Ke4 {[%emt 0:00:00]} Bf2 {[%emt 0:00:20]} 48. Kd3 {[%emt 0:01:30]} Ke8 {[%emt 0:00:08]} 49. Bd6 {[%emt 0:00:30]} Kd7 {[%emt 0:00:02]} 50. Bb4 {[%emt 0:04:30]} Kc6 {[%emt 0:00:14]} 51. Kc4 {[%emt 0:00:30]} b5+ {[%emt 0:01:51]} 52. axb6 {[%emt 0:00:30]} Kxb6 {[%emt 0:00:00]} 53. Bd2 {[%emt 0:00:30]} h5 {[%emt 0:00:00]} 54. Bc3 {[%emt 0:00:00]} Kc6 {[%emt 0:00:22]} 55. Bb4 {[%emt 0:00:00]} Kb6 {[%emt 0:01:10]} 56. Ba3 {[%emt 0:01:30]} Be1 {[%emt 0:00:46]} 57. Bc5+ {[%emt 0:00:30]} Kc6 {[%emt 0:00:36]} 58. Bd4 {[%emt 0:00:30]} a5 {[%emt 0:00:00]} 59. Bc5 {[%emt 0:00:45]} Bb4 {[%emt 0:00:20]} 60. Bd4 {[%emt 0:01:29]} Be1 {[%emt 0:00:11]} 61. Bc5 {[%emt 0:00:49]} Bg3 {[%emt 0:00:11]} 62. Bd4 {[%emt 0:03:58]} Be1 {[%emt 0:00:30]} 63. Bc5 {[%emt 0:00:09]} Bd2 {[%emt 0:00:00]} 64. Bd4 {[%emt 0:00:44]} Bc1 $19 {[%emt 0:00:00]} 65. Kb3 {[%emt 0:10:23]} Kd5 {[%emt 0:00:25]} 66. Bc3 {[%emt 0:00:00]} Bf4 {[%emt 0:00:16]} 67. Bxa5 {[%emt 0:00:13]} Bxe5 {[%emt 0:00:00]} 68. Bd8 {[%emt 0:00:09]} Ke4 {[%emt 0:00:20]} 69. Kc4 {[%emt 0:00:00]} Kf5 {[%emt 0:00:00]} 70. Kd3 {[%emt 0:00:08]} Bxf6 {[%emt 0:00:20]} 71. Bb6 {[%emt 0:00:00]} Kf4 {[%emt 0:00:41]} 72. Bc7+ {[%emt 0:00:11]} Be5 {[%emt 0:00:36]} 73. Bd8 {[%emt 0:00:16]} Bd6 {[%emt 0:01:11]} 74. Ke2 {[%emt 0:00:18]} Kg3 {[%emt 0:00:34]} 75. h4 {[%emt 0:00:30]} f5 {[%emt 0:00:30]} 76. Bf6 {[%emt 0:00:00]} f4 {[%emt 0:01:50]} 77. Bg5 {[%emt 0:00:07]} e5 {[%emt 0:00:30]} 78. Bf6 {[%emt 0:00:30]} e4 {[%emt 0:00:30]} 79. Bg5 {[%emt 0:00:00]} Bc5 {[%emt 0:00:00]} 80. Bf6 {[%emt 0:00:00]} f3+ {[%emt 0:00:22]} 81. Kf1 {[%emt 0:00:00]} e3 {[%emt 0:00:03]} 82. Be5+ {[%emt 0:00:23]} Kxh4 {[%emt 0:00:45]} 83. Bc3 {[%emt 0:00:30]} Kg4 {[%emt 0:00:30]} 84. Bd2 {[%emt 0:00:11]} h4 {[%emt 0:01:13]} 85. Bc3 {[%emt 0:00:30]} h3 {[%emt 0:00:12]} 86. Kg1 {[%emt 0:00:00]} f2+ {[%emt 0:01:21]} 0-1